bitfinex-derivatives/quotes_SOLF0:USTF0_20260204
["timestamp","ask_amount","ask_price","bid_price","bid_amount"]
[1770217379332,50.85772809,92.374,92.246,173.32]
[1770217379333,9.7582,92.373,92.271,54.31917292]
[1770217380235,9.76,92.356,92.271,54.31917292]
[1770217380630,51.0551692,92.377,92.271,54.31917292]
[1770217380826,51.0551692,92.377,92.273,54.31917292]
[1770217381329,50.03802359,92.407,92.273,54.31917292]
[1770217381728,50.03802359,92.407,92.301,54.31917292]
[1770217382129,50.03802359,92.4,92.301,54.31917292]
[1770217382340,9.7566,92.389,92.301,54.31917292]
[1770217382541,48.6180563,92.429,92.301,54.31917292]
[1770217382845,9.7573,92.381,92.301,54.31917292]
[1770217383134,48.6180563,92.4,92.301,54.31917292]
[1770217383644,49.37188315,92.381,92.271,54.31917292]
[1770217384035,9.7576,92.379,92.274,54.31917292]
[1770217384332,49.37188315,92.381,92.274,54.31917292]
[1770217384636,9.7575,92.38,92.274,64.08777292]
[1770217384835,49.37188315,92.381,92.244,54.31917292]
[1770217385134,50.58457048,92.356,92.244,54.31917292]
[1770217385639,9.7589,92.367,92.261,9.77]
[1770217385838,51.32411315,92.362,92.234,54.31917292]
[1770217386043,151.8981,92.31,92.177,54.31917292]
[1770217386238,9.7691,92.27,92.177,54.31917292]
[1770217386437,51.32411315,92.3,92.181,54.31917292]
[1770217386637,51.32411315,92.3,92.209,54.31917292]
[1770217386934,52.34220713,92.303,92.151,54.31917292]
[1770217387135,52.34220713,92.3,92.196,54.31917292]
[1770217387440,53.06659675,92.318,92.196,54.31917292]
[1770217388032,19.5241,92.337,92.134,5.55901264]
[1770217388033,53.06659675,92.309,92.187,54.31917292]
[1770217388235,53.06659675,92.349,92.211,54.31917292]
[1770217388440,53.06659675,92.349,92.224,54.31917292]
[1770217388636,22.26397387,92.41,92.241,54.31917292]
[1770217388839,9.7583,92.372,92.275,54.31917292]
[1770217389039,52.655771,92.41,92.275,54.31917292]
[1770217389345,52.655771,92.404,92.277,54.31917292]
[1770217389838,9.7565,92.39,92.293,54.31917292]
[1770217390038,52.655771,92.404,92.293,54.31917292]
[1770217390630,53.20414469,92.434,92.296,54.31917292]
[1770217390836,53.20414469,92.489,92.321,54.31917292]
[1770217391029,53.20414469,92.489,92.291,151.9283]
[1770217391030,53.20414469,92.489,92.351,54.31917292]
[1770217391238,53.20414469,92.489,92.353,54.31917292]
[1770217391632,53.20414469,92.489,92.355,54.31917292]
[1770217391941,53.20414469,92.489,92.361,54.31917292]
[1770217392547,54.20414469,92.518,92.371,54.31917292]
[1770217392843,54.20414469,92.518,92.35,151.8312]
[1770217392844,1.0,92.518,92.415,54.31917292]
[1770217393239,53.20414469,92.517,92.415,54.31917292]
[1770217393439,53.20414469,92.517,92.385,54.31917292]
[1770217393937,53.20414469,92.517,92.401,54.31917292]
[1770217394238,53.20414469,92.517,92.403,54.31917292]
[1770217394436,53.20414469,92.517,92.404,174.1]
[1770217394635,53.20414469,92.517,92.404,54.31917292]
[1770217395036,53.20414469,92.517,92.406,54.31917292]
[1770217395235,1.0,92.518,92.406,54.31917292]
[1770217395448,1.0,92.518,92.431,54.31917292]
[1770217395643,53.20414469,92.574,92.461,54.31917292]
[1770217395837,53.20414469,92.625,92.463,54.31917292]
[1770217396239,9.7351,92.592,92.479,54.31917292]
[1770217396936,53.20414469,92.597,92.479,54.31917292]
[1770217397141,53.20414469,92.597,92.49,22.26397387]
[1770217397337,53.20414469,92.629,92.491,54.31917292]
[1770217397535,151.263,92.698,92.521,54.31917292]
[1770217397536,53.20414469,92.658,92.521,54.31917292]
[1770217397742,53.20414469,92.658,92.522,174.04]
[1770217398036,53.20414469,92.658,92.523,54.31917292]
[1770217398233,317.43364846,92.714,92.522,174.04]
[1770217398234,53.20414469,92.686,92.55,22.26397387]
[1770217398539,53.20414469,92.686,92.551,54.31917292]
[1770217398738,53.20414469,92.686,92.574,54.31917292]
[1770217398937,53.20414469,92.72,92.574,54.31917292]
[1770217399135,53.20414469,92.713,92.576,54.31917292]
[1770217399339,53.20414469,92.759,92.621,54.31917292]
[1770217399535,53.20414469,92.759,92.623,54.31917292]
[1770217399731,151.1675,92.757,92.625,54.31917292]
[1770217399938,53.20414469,92.753,92.625,54.31917292]
[1770217400143,9.7187,92.749,92.625,54.31917292]
[1770217400343,53.20414469,92.741,92.625,54.31917292]
[1770217400548,53.20414469,92.73,92.593,54.31917292]
[1770217400840,22.26397387,92.76,92.592,174.22]
[1770217400841,62.92084469,92.767,92.641,54.31917292]
[1770217401143,150.9529,92.888,92.701,54.31917292]
[1770217401346,9.7052,92.877,92.761,54.31917292]
[1770217401533,150.8547,92.949,92.791,54.31917292]
[1770217401741,150.8264,92.966,92.821,54.31917292]
[1770217401945,150.7879,92.99,92.762,86.36]
[1770217401946,150.7879,92.99,92.851,54.31917292]
[1770217402142,150.7142,93.036,92.88,22.26397387]
[1770217402350,80.07208024,93.057,92.852,174.34]
[1770217402543,80.07208024,93.057,92.91,22.26397387]
[1770217402737,80.07208024,93.094,92.94,22.26397387]
[1770217402940,451.1922,93.232,92.97,22.26397387]
[1770217402941,80.07208024,93.129,92.97,22.26397387]
[1770217403138,80.07208024,93.109,92.943,174.78]
[1770217403344,80.07208024,93.109,92.97,22.26397387]
[1770217403844,80.07208024,93.109,92.934,175.2]
[1770217404053,79.98391146,93.148,92.99,22.26397387]
[1770217404344,79.98391146,93.139,92.934,175.2]
[1770217404536,79.98391146,93.107,92.95,22.26397387]
[1770217404736,79.98391146,93.101,92.98,22.26397387]
[1770217405142,79.98391146,93.101,92.94,6.0]
[1770217405143,79.98391146,93.141,93.0,22.26397387]
[1770217405337,79.98391146,93.141,93.01,22.26397387]
[1770217405645,150.442,93.204,93.01,22.26397387]
[1770217405646,79.98391146,93.188,93.01,22.26397387]
[1770217405841,79.98391146,93.222,93.08,22.26397387]
[1770217406038,79.98391146,93.206,93.05,22.26397387]
[1770217406243,79.98391146,93.206,93.064,150.6667]
[1770217406543,85.50346474,93.241,93.12,22.26397387]
[1770217406744,85.50346474,93.241,93.031,150.7208]
[1770217406745,79.98391146,93.221,93.031,150.7208]
[1770217406947,150.4344,93.209,92.972,150.8167]
[1770217407138,79.98391146,93.169,93.0,22.26397387]
[1770217407340,79.98391146,93.147,92.941,215.88]
[1770217407648,79.98391146,93.104,92.915,177.8]
[1770217407846,79.98391146,93.087,92.903,177.96]
[1770217408143,79.98391146,93.076,92.93,22.26397387]
[1770217408348,79.98391146,93.076,92.939,9.6987]
[1770217408644,79.98391146,93.109,92.895,150.9408]
[1770217408847,79.98391146,93.107,92.905,9.7023]
[1770217409062,79.98391146,93.076,92.896,178.72]
[1770217409237,79.98391146,93.045,92.896,178.72]
[1770217409436,150.6578,93.07,92.885,179.1]
[1770217409645,79.98391146,93.027,92.847,179.26]
[1770217409844,79.98391146,93.027,92.86,22.26397387]
[1770217410347,150.632,93.086,92.817,453.2035]
[1770217410348,79.98391146,93.066,92.92,22.26397387]
[1770217410543,79.98391146,93.066,92.921,179.62]
[1770217410735,79.98391146,93.059,92.898,179.7]
[1770217410937,79.98391146,93.059,92.899,179.7]
[1770217411346,79.98391146,93.109,92.93,22.26397387]
[1770217411544,79.98391146,93.109,92.951,150.8502]
[1770217411746,300.8942,93.201,92.99,22.26397387]
[1770217411747,79.98391146,93.149,92.99,22.26397387]
[1770217411942,79.98391146,93.149,92.957,150.8405]
[1770217412142,79.98391146,93.139,92.97,22.26397387]
[1770217412338,79.98391146,93.203,93.036,150.7128]
[1770217412643,79.98391146,93.203,92.998,452.3193]
[1770217412644,79.98391146,93.24,93.074,150.6511]
[1770217412843,79.98391146,93.275,93.102,150.6046]
[1770217413051,79.98391146,93.24,93.103,180.88]
[1770217413643,79.98391146,93.24,93.09,22.26397387]
[1770217413949,79.98391146,93.24,93.104,180.96]
[1770217414247,79.98391146,93.239,93.084,180.98]
[1770217414449,79.98391146,93.239,93.09,3.45300501]
[1770217414849,150.2811,93.304,93.09,3.45300501]
[1770217414850,73.59141212,93.225,93.09,3.45300501]
[1770217415043,73.59141212,93.225,93.065,3.45300501]
[1770217415242,22.26397387,93.26,93.079,6.95300501]
[1770217415443,22.26397387,93.32,93.139,9.3364727]
[1770217415643,22.26397387,93.32,93.111,150.5909]
[1770217415644,0.10715702,93.321,93.171,9.3364727]
[1770217415860,150.1173,93.406,93.167,150.4996]
[1770217415861,22.26397387,93.39,93.225,9.22931568]
[1770217416149,150.0966,93.418,93.258,9.22931568]
[1770217416450,150.0966,93.418,93.183,150.4745]
[1770217416451,149.9495,93.51,93.292,8.44907401]
[1770217416645,149.9058,93.537,93.259,331.7919]
[1770217416646,226.64,93.513,93.329,8.44907401]
[1770217416846,226.64,93.513,93.334,8.44907401]
[1770217417047,226.64,93.513,93.305,181.86]
[1770217417048,22.26397387,93.46,93.305,181.86]
[1770217417347,22.26397387,93.46,93.226,150.4053]
[1770217417348,73.37158183,93.414,93.262,181.82]
[1770217417546,73.37158183,93.414,93.269,10.78820232]
[1770217417746,226.52,93.479,93.262,181.82]
[1770217417747,73.37158183,93.461,93.286,10.78820232]
[1770217417948,73.37158183,93.499,93.331,10.78820232]
[1770217418254,78.85185511,93.462,93.333,10.78820232]
[1770217418459,5.48027328,93.462,93.348,8.9236031]
[1770217418654,5.48027328,93.462,93.35,8.9236031]
[1770217418845,80.89087615,93.462,93.316,8.9236031]
[1770217419164,75.41060287,93.405,93.278,182.2]
[1770217419344,75.41060287,93.405,93.173,150.4909]
[1770217419345,75.41060287,93.39,93.246,9.14491739]
[1770217419747,22.26397387,93.41,93.208,150.4335]
[1770217419748,75.41145276,93.349,93.208,9.14491739]
[1770217420146,75.41145276,93.349,93.183,182.46]
[1770217420348,75.41145276,93.337,93.184,9.83589813]
[1770217420546,75.41145276,93.337,93.132,150.5573]
[1770217420547,75.06596239,93.339,93.187,9.83589813]
[1770217420741,75.06596239,93.337,93.19,9.83589813]
[1770217420943,75.06596239,93.337,93.221,9.83589813]
[1770217421150,75.06596239,93.337,93.186,9.83589813]
[1770217421352,75.06596239,93.337,93.188,9.83589813]
[1770217422051,22.26397387,93.37,93.194,9.83589813]
[1770217422246,75.06596239,93.369,93.219,9.83589813]
[1770217422443,75.06596239,93.369,93.193,150.4581]
[1770217422444,75.06596239,93.369,93.242,3.48438541]
[1770217422643,75.06596239,93.369,93.244,3.48438541]
[1770217422854,78.24171875,93.367,93.214,182.74]
[1770217423045,78.24171875,93.367,93.216,3.48438541]
[1770217423248,78.24171875,93.359,93.216,3.48438541]
[1770217423442,78.24171875,93.329,93.184,182.86]
[1770217423849,78.24171875,93.329,93.098,150.6124]
[1770217423850,78.24171875,93.287,93.142,3.48438541]
[1770217424156,227.8,93.328,93.102,3.48438541]
[1770217424157,22.26397387,93.26,93.102,3.48438541]
[1770217424447,78.24171875,93.259,93.106,4.95588383]
[1770217424650,78.24171875,93.259,93.111,4.95588383]
[1770217424951,78.24171875,93.259,93.134,4.95588383]
[1770217426254,78.24171875,93.259,93.14,4.95588383]
[1770217426651,63.89500787,93.305,93.162,32.17780717]
[1770217427253,63.89500787,93.303,93.162,32.17780717]
[1770217427855,63.89500787,93.298,93.162,32.17780717]
[1770217428945,62.47516759,93.29,93.126,39.46985697]
[1770217429151,22.26397387,93.24,93.085,44.46985697]
[1770217429753,22.26397387,93.24,93.088,44.46985697]
[1770217430149,227.26,93.251,93.088,44.46985697]
[1770217430350,22.26397387,93.24,93.088,44.46985697]
[1770217430549,22.26397387,93.2,93.054,49.57752042]
[1770217431156,62.47516759,93.199,93.054,49.57752042]
[1770217431351,62.47516759,93.196,93.056,49.57752042]
[1770217431758,62.47516759,93.189,93.056,49.57752042]
[1770217431953,9.6733,93.184,93.056,49.57752042]
[1770217432157,22.26397387,93.19,93.056,49.57752042]
[1770217432158,62.47516759,93.183,93.056,49.57752042]
[1770217432351,32.84055643,93.18,93.056,49.57752042]
[1770217432551,62.47516759,93.179,93.056,49.57752042]
[1770217432860,32.84055643,93.18,93.056,49.57752042]
[1770217432861,62.47516759,93.174,93.056,49.57752042]
[1770217433355,62.47516759,93.174,93.074,62.20784831]
[1770217433556,62.47516759,93.209,93.074,62.20784831]
[1770217433760,62.47516759,93.209,93.074,52.52324831]
[1770217433961,62.47516759,93.209,93.093,52.52737969]
[1770217434153,62.47516759,93.209,93.095,52.52737969]
[1770217434361,150.2443,93.327,93.121,73.36331743]
[1770217434558,150.3143,93.283,93.135,73.36331743]
[1770217434754,32.84055643,93.23,93.102,73.36331743]
[1770217434955,9.6704,93.212,93.102,73.36331743]
[1770217435558,32.84055643,93.23,93.069,73.36331743]
[1770217435559,9.6719,93.197,93.069,73.36331743]
[1770217435966,32.84055643,93.2,93.069,73.36331743]
[1770217436162,9.6718,93.198,93.069,73.36331743]
[1770217436367,74.40699165,93.197,93.069,73.36331743]
[1770217436664,74.40699165,93.197,93.035,150.714]
[1770217436665,74.40699165,93.197,93.071,73.36331743]
[1770217437163,74.40699165,93.197,93.073,73.36331743]
[1770217438267,150.3311,93.273,93.026,150.7283]
[1770217438268,9.6682,93.233,93.101,76.64787921]
[1770217438460,150.2689,93.311,93.103,76.64787921]
[1770217438663,32.84055643,93.27,93.103,76.64787921]
[1770217438859,32.84055643,93.27,93.105,76.64787921]
[1770217439063,32.84055643,93.3,93.121,76.64787921]
[1770217439260,32.84055643,93.3,93.106,182.28]
[1770217439261,226.86,93.31,93.151,76.64787921]
[1770217439461,226.86,93.31,93.124,150.57]
[1770217439462,32.84055643,93.33,93.161,76.64787921]
[1770217439660,150.2429,93.327,93.161,76.64787921]
[1770217439861,32.84055643,93.3,93.161,76.64787921]
[1770217440063,9.6646,93.267,93.161,76.64787921]
[1770217440363,72.931238,93.239,93.094,76.64787921]
[1770217440567,72.931238,93.195,93.089,259.28787921]
[1770217440760,72.931238,93.229,93.091,76.64787921]
[1770217440964,82.605138,93.178,93.06,9.6861]
[1770217441173,72.931238,93.178,93.061,259.30787921]
[1770217441365,32.84055643,93.23,93.062,76.64787921]
[1770217441561,32.84055643,93.23,93.061,182.66]
[1770217441562,72.931238,93.239,93.101,76.64787921]
[1770217441762,72.931238,93.27,93.132,76.64787921]
[1770217441974,72.931238,93.309,93.161,76.64787921]
[1770217442473,67.931238,93.309,93.163,76.64787921]
[1770217442670,150.2992,93.292,93.131,76.64787921]
[1770217442975,32.84055643,93.21,93.098,76.64787921]
[1770217443169,32.84055643,93.26,93.098,76.64787921]
[1770217443376,227.6,93.277,93.111,76.64787921]
[1770217443669,9.6685,93.23,93.111,76.64787921]
[1770217443872,9.6685,93.23,93.113,76.64787921]
[1770217444068,227.6,93.277,93.121,76.64787921]
[1770217444269,82.596038,93.266,93.121,76.64787921]
[1770217444576,32.84055643,93.26,93.121,76.64787921]
[1770217444870,67.931238,93.255,93.096,76.64787921]
[1770217445174,67.931238,93.255,93.121,76.64787921]
[1770217445373,150.3672,93.25,93.121,76.64787921]
[1770217445571,150.3672,93.25,93.001,603.0774]
[1770217445572,150.4114,93.223,93.087,76.64787921]
[1770217445773,150.4031,93.228,93.087,76.64787921]
[1770217445971,9.6737,93.181,93.06,42.52665643]
[1770217446183,227.72,93.18,93.03,32.84055643]
[1770217446369,32.84055643,93.2,93.051,76.64787921]
[1770217446566,150.4537,93.197,93.051,76.64787921]
[1770217446768,72.931238,93.169,93.051,76.64787921]
[1770217447272,72.931238,93.159,93.018,76.64787921]
[1770217447474,9.6805,93.115,93.018,76.64787921]
[1770217447773,72.931238,93.117,93.018,76.64787921]
[1770217447971,9.6804,93.116,93.002,9.6921]
[1770217448166,72.931238,93.117,93.002,76.64787921]
[1770217448365,72.931238,93.117,93.004,76.64787921]
[1770217448579,72.931238,93.117,93.017,86.33837921]
[1770217448765,72.931238,93.117,93.017,76.64787921]
[1770217449173,72.931238,93.113,92.984,76.64787921]
[1770217449571,72.931238,93.144,93.018,76.64787921]
[1770217449771,72.931238,93.144,93.031,76.64787921]
[1770217449965,72.931238,93.144,92.976,150.8087]
[1770217449966,72.931238,93.144,93.032,260.00787921]
[1770217450171,72.931238,93.144,93.032,76.64787921]
[1770217450671,82.612638,93.106,93.0,183.38]
[1770217450868,82.612638,93.106,92.998,76.64787921]
[1770217451070,72.931238,93.106,92.998,76.64787921]
[1770217451871,72.931238,93.106,93.001,76.64787921]
[1770217452066,72.931238,93.106,92.951,76.64787921]
[1770217452268,72.931238,93.072,92.951,76.64787921]
[1770217452680,72.931238,93.072,92.967,9.6958]
[1770217452868,72.931238,93.072,92.951,76.64787921]
[1770217453381,82.620238,93.033,92.911,76.64787921]
[1770217453589,72.931238,93.064,92.911,76.64787921]
[1770217453777,72.931238,93.064,92.967,76.64787921]
[1770217453975,72.931238,93.064,92.934,76.64787921]
[1770217454272,9.687,93.052,92.934,76.64787921]
[1770217454581,9.687,93.052,92.925,183.64]
[1770217454582,72.931238,93.051,92.925,183.64]
[1770217454774,72.931238,93.044,92.925,183.64]
[1770217455174,72.931238,93.112,92.941,76.64787921]
[1770217455472,72.931238,93.086,92.952,76.64787921]
[1770217456073,72.931238,93.086,92.971,86.34317921]
[1770217456476,72.931238,93.079,92.971,76.64787921]
[1770217456776,72.931238,93.079,92.925,183.64]
[1770217456777,72.931238,93.079,92.941,76.64787921]
[1770217456973,72.931238,93.079,92.943,76.64787921]
[1770217457176,72.931238,93.075,92.958,9.6967]
[1770217457381,72.931238,93.075,92.96,76.64787921]
[1770217457971,72.931238,93.073,92.96,76.64787921]
[1770217458281,72.931238,93.073,92.961,76.64787921]
[1770217458484,72.931238,93.073,92.965,76.64787921]
[1770217458679,72.931238,93.105,92.965,76.64787921]
[1770217458980,72.931238,93.105,92.991,76.64787921]
[1770217459179,72.931238,93.149,92.991,76.64787921]
[1770217459373,72.931238,93.149,92.99,32.84055643]
[1770217459374,82.608538,93.146,93.029,76.64787921]
[1770217459579,72.931238,93.146,92.991,76.64787921]
[1770217459782,72.931238,93.144,92.993,76.64787921]
[1770217460278,72.931238,93.139,92.993,76.64787921]
[1770217460482,72.931238,93.139,92.996,76.64787921]
[1770217460483,9.6808,93.112,92.996,76.64787921]
[1770217460682,82.612038,93.112,92.996,76.64787921]
[1770217461181,82.612038,93.112,92.992,183.72]
[1770217461182,72.931238,93.096,92.992,183.72]
[1770217461380,72.931238,93.096,92.965,76.64787921]
[1770217461582,72.931238,93.127,93.001,76.64787921]
[1770217461982,72.931238,93.127,93.004,86.33977921]
[1770217462387,72.931238,93.127,93.004,76.64787921]
[1770217462784,72.931238,93.098,93.004,76.64787921]
[1770217463591,9.6824,93.096,93.004,76.64787921]
[1770217463786,75.36628008,93.096,92.971,76.0163101]
[1770217464388,75.36628008,93.096,92.997,85.7089101]
[1770217464689,75.36628008,93.092,92.971,76.0163101]
[1770217464890,75.36628008,93.092,92.983,85.7104101]
[1770217465188,75.36628008,93.078,92.962,184.02]
[1770217465398,75.36628008,93.078,92.887,150.9537]
[1770217465399,75.36628008,93.078,92.911,76.0163101]
[1770217465691,75.36628008,93.078,92.843,151.0258]
[1770217465692,75.36628008,92.992,92.882,76.0163101]
[1770217465998,75.36628008,93.093,92.931,76.0163101]
[1770217466194,9.6889,93.034,92.931,76.0163101]
[1770217466393,85.05518008,93.034,92.931,76.0163101]
[1770217466692,75.36628008,93.034,92.902,76.0163101]
[1770217466891,75.36628008,92.999,92.902,76.0163101]
[1770217467086,32.84055643,93.04,92.902,76.0163101]
[1770217467286,75.36628008,93.039,92.902,76.0163101]
[1770217467686,75.36628008,93.039,92.917,9.701]
[1770217467893,75.36628008,93.039,92.902,76.0163101]
[1770217468193,75.36628008,92.999,92.902,76.0163101]
[1770217468594,75.36628008,93.027,92.904,76.0163101]
[1770217468891,75.36628008,93.027,92.906,76.0163101]
[1770217469291,75.36628008,93.027,92.876,76.0163101]
[1770217469492,75.36628008,93.027,92.88,76.0163101]
[1770217469888,75.36628008,93.004,92.889,9.704]
[1770217470093,75.36628008,93.004,92.88,76.0163101]
[1770217470595,225.64,93.016,92.848,76.0163101]
[1770217470596,75.36628008,92.972,92.848,76.0163101]
[1770217471110,75.36628008,92.972,92.782,151.1249]
[1770217471111,75.36628008,93.002,92.871,76.0163101]
[1770217471299,150.6714,93.062,92.871,260.1763101]
[1770217471300,75.36628008,92.986,92.871,260.1763101]
[1770217471801,75.36628008,92.986,92.841,76.0163101]
[1770217472395,75.36628008,92.986,92.843,76.0163101]
[1770217472996,75.36628008,92.978,92.868,9.7061]
[1770217473200,75.36628008,92.978,92.843,76.0163101]
[1770217473901,75.36628008,92.978,92.781,151.1256]
[1770217473902,75.36628008,93.009,92.886,76.0163101]
[1770217474301,75.36628008,92.995,92.886,76.0163101]
[1770217474602,75.36628008,92.995,92.858,76.0163101]
[1770217474796,75.36628008,92.976,92.867,9.7062]
[1770217475390,75.36628008,92.973,92.867,9.7062]
[1770217475591,75.36628008,92.973,92.858,76.0163101]
[1770217475903,75.36628008,92.971,92.858,76.0163101]
[1770217476103,75.36628008,92.971,92.863,9.7066]
[1770217476303,75.36628008,92.971,92.858,76.0163101]
[1770217477000,75.36628008,92.971,92.86,76.0163101]
[1770217477307,32.35,93.057,92.859,184.26]
[1770217477308,75.36628008,93.046,92.939,9.6987]
[1770217477506,75.36628008,93.046,92.938,184.3]
[1770217477702,75.36628008,93.075,92.974,9.6951]
[1770217478009,75.36628008,93.075,92.946,76.0163101]
[1770217478307,75.36628008,93.075,92.972,9.6952]
[1770217478503,75.36628008,93.075,92.946,76.0163101]
[1770217479607,75.36628008,93.099,92.946,76.0163101]
[1770217479902,75.36628008,93.099,92.94,32.84055643]
[1770217479903,75.36628008,93.099,93.001,76.0163101]
[1770217480095,75.36628008,93.099,93.002,260.3563101]
[1770217480299,75.36628008,93.099,93.003,76.0163101]
[1770217481100,85.04538008,93.128,93.027,9.6895]
[1770217481305,75.36628008,93.128,93.027,9.6895]
[1770217481503,85.04538008,93.128,93.016,76.0163101]
[1770217481705,75.36628008,93.128,93.016,76.0163101]
[1770217482109,75.36628008,93.159,93.031,76.0163101]
[1770217482311,75.36628008,93.159,93.031,260.6363101]
[1770217482517,85.04618008,93.12,93.031,260.6363101]
[1770217482714,75.36628008,93.12,93.002,76.0163101]
[1770217482909,75.36628008,93.12,92.946,150.8585]
[1770217482910,75.36628008,93.12,92.984,184.66]
[1770217483106,75.36628008,93.105,92.999,9.6925]
[1770217483307,75.36628008,93.105,93.001,76.0163101]
[1770217483608,75.36628008,93.131,93.02,9.6902]
[1770217483804,75.36628008,93.131,93.001,76.0163101]
[1770217484006,75.36628008,93.131,93.033,9.6889]
[1770217484309,75.36628008,93.131,92.973,150.8139]
[1770217484310,150.502,93.167,93.031,76.0163101]
[1770217484507,9.6806,93.114,93.017,9.6906]
[1770217484812,9.6806,93.114,92.976,94.98]
[1770217484813,75.36628008,93.114,93.018,76.0163101]
[1770217485299,75.36628008,93.114,92.999,9.6924]
[1770217485504,75.36628008,93.114,92.989,76.0163101]
[1770217485808,75.36628008,93.098,92.989,76.0163101]
[1770217486707,75.36628008,93.098,92.946,150.8584]
[1770217486708,75.36628008,93.163,93.031,76.0163101]
[1770217486900,75.36628008,93.159,93.052,85.7033101]
[1770217487101,75.36628008,93.159,93.052,76.0163101]
[1770217487505,75.36628008,93.174,93.061,76.0163101]
[1770217487914,9.6757,93.161,93.061,85.7022101]
[1770217488110,75.36628008,93.174,93.061,76.0163101]
[1770217488305,75.36628008,93.174,93.018,150.7418]
[1770217488306,75.36628008,93.204,93.071,76.0163101]
[1770217488511,75.36628008,93.204,93.105,9.6814]
[1770217488710,75.36628008,93.204,93.098,76.0163101]
[1770217489007,75.36628008,93.204,93.101,76.0163101]
[1770217489209,75.36628008,93.249,93.103,76.0163101]
[1770217489408,75.36628008,93.231,93.112,9.6807]
[1770217489608,75.36628008,93.231,93.103,76.0163101]
[1770217490007,75.36628008,93.219,93.107,9.6812]
[1770217490207,75.36628008,93.219,93.087,185.0]
[1770217490510,75.36628008,93.177,93.076,76.0163101]
[1770217491215,150.385,93.239,93.063,185.0]
[1770217491216,75.36628008,93.164,93.063,185.0]
[1770217491516,75.36628008,93.159,93.015,76.0163101]
[1770217491814,32.84055643,93.13,92.987,76.0163101]
[1770217492109,75.36628008,93.086,92.975,9.695]
[1770217492304,75.36628008,93.086,92.96,76.0163101]
[1770217492705,85.04978008,93.086,92.974,9.695]
[1770217493114,75.36628008,93.086,92.966,185.0]
[1770217493317,75.36628008,93.047,92.931,76.0163101]
[1770217493611,75.36628008,93.047,92.89,32.84055643]
[1770217493818,77.17558046,93.043,92.912,73.84467283]
[1770217494311,77.17558046,93.043,92.92,106.68522926]
[1770217494518,77.17558046,93.043,92.921,73.84467283]
[1770217494717,77.17558046,93.074,92.951,73.84467283]
[1770217494910,77.17558046,93.074,92.955,73.84467283]
[1770217495306,77.17558046,93.074,92.958,73.84467283]
[1770217495907,77.17558046,93.074,92.96,73.84467283]
[1770217496211,77.17558046,93.094,92.962,73.84467283]
[1770217496617,77.17558046,93.077,92.962,73.84467283]
[1770217497021,77.17558046,93.077,92.964,9.6961]
[1770217497315,77.17558046,93.077,92.965,73.84467283]
[1770217497519,77.17558046,93.077,92.966,185.12]
[1770217498320,77.88680533,93.13,92.971,77.84540715]
[1770217498716,9.6813,93.106,92.996,9.6928]
[1770217499015,21.93949878,93.14,92.971,77.84540715]
[1770217499016,77.88680533,93.105,92.971,77.84540715]
[1770217499213,77.88680533,93.089,92.971,77.84540715]
[1770217500018,9.6834,93.087,92.973,77.84540715]
[1770217500215,77.88680533,93.089,92.973,77.84540715]
[1770217500618,77.88680533,93.085,92.973,77.84540715]
[1770217500817,77.88680533,93.126,92.973,77.84540715]
[1770217501015,9.6807,93.113,93.005,77.84540715]
[1770217501320,77.88680533,93.113,93.005,77.84540715]
[1770217501710,244.39949878,93.14,93.005,77.84540715]
[1770217501711,77.88680533,93.104,93.005,77.84540715]
[1770217501915,77.88680533,93.139,93.005,77.84540715]
[1770217502311,77.88680533,93.097,92.983,185.7]
[1770217502514,77.88680533,93.097,92.975,77.84540715]
[1770217502724,77.88680533,93.139,93.054,9.6867]
[1770217502918,77.88680533,93.196,93.054,77.84540715]
[1770217503120,77.88680533,93.196,93.061,77.84540715]
[1770217503317,77.88680533,93.196,93.018,150.7404]
[1770217503318,77.88680533,93.179,93.051,77.84540715]
[1770217503618,77.88680533,93.149,93.021,77.84540715]
[1770217504417,77.88680533,93.149,93.02,21.93949878]
[1770217504418,77.88680533,93.137,93.025,77.84540715]
[1770217504921,77.88680533,93.137,93.021,77.84540715]
[1770217505124,77.88680533,93.169,93.025,77.84540715]
[1770217505324,77.88680533,93.169,93.04,77.84540715]
[1770217505621,150.4389,93.206,93.04,77.84540715]
[1770217505622,77.88680533,93.145,93.04,77.84540715]
[1770217505821,77.88680533,93.139,93.011,77.84540715]
[1770217506021,150.4923,93.173,93.011,77.84540715]
[1770217506022,77.88680533,93.136,93.026,9.6896]
[1770217506219,77.88680533,93.136,93.026,87.53500715]
[1770217506413,77.88680533,93.136,92.991,185.94]
[1770217506414,77.88680533,93.136,92.996,77.84540715]
[1770217506621,77.88680533,93.136,92.93,150.8833]